Cogmind - Beta 13 @@@ ROGUE MODE // 2024.06.30 @ 23:04:09 Player: mournfully Result: Destroyed by D-53 Grenadier with Mini Grenade Launcher Performance ------------- Evolutions (0) 0 Regions Visited (2) 400 Robots Destroyed (14) 70 Value Destroyed (301) 301 Prototype IDs (0) 0 Alien Tech Used (0) 0 Bonus (0) 0 TOTAL SCORE: 771 Bonus ------- None Cogmind --------- Core Integrity 0/250 Matter 248/300 Energy 95/100 System Corruption 7% Temperature Cool (56) Movement Core (850) Ox16 Location -10/Mines Parts ------- > --- POWER (1) -------- (None) > --- PROPULSION (2) --- (None) > --- UTILITY (2) ------ High-capacity Storage Unit > --- WEAPON (2) ------- Bore Cannon > --- INVENTORY (20) --- Light Ion Engine Small Storage Unit Structural Scanner Signal Interpreter Seismic Detector Targeting Computer ECM Suite Power Shielding Small Laser Assault Rifle Light Assault Rifle Mining Laser Peak State ------------ > --- POWER ------------ Light Ion Engine > --- PROPULSION ------- Light Treads Light Treads > --- UTILITY ---------- High-capacity Storage Unit Seismic Detector > --- WEAPON ----------- Light Assault Rifle Bore Cannon > --- INVENTORY -------- Light Ion Engine Small Storage Unit Structural Scanner Signal Interpreter Seismic Detector Targeting Computer ECM Suite Power Shielding Small Laser Assault Rifle Light Assault Rifle Mining Laser [Rating: 12] Favorites ----------- Power Light Ion Engine Engine Light Ion Engine Propulsion Light Treads Treads Light Treads Utility Seismic Detector Device Seismic Detector Storage High-capacity Storage Unit Weapon Light Assault Rifle Energy Gun Small Laser Ballistic Gun Light Assault Rifle Ballistic Cannon Bore Cannon Build | -11 -10 -10 ------- Run | Yrd Mat Min Slots Evolved . | . . . Power . | . . . Propulsion . | . . . Utility . | . . . Weapon . | . . . Parts Attached 20 | 7 7 6 Power 6 | 2 3 1 Engine 6 | 2 3 1 Core . | . . . Reactor . | . . . Propulsion 4 | 2 . 2 Treads 4 | 2 . 2 Leg . | . . . Wheel . | . . . Hover . | . . . Flight . | . . . Utility 4 | 1 3 . Device 2 | . 2 . Storage 2 | 1 1 . Processor . | . . . Hackware . | . . . Protection . | . . . Artifact . | . . . Weapon 6 | 2 1 3 Energy Gun 1 | . . 1 Energy Cannon . | . . . Ballistic Gun 4 | 2 1 1 Ballistic Cannon 1 | . . 1 Launcher . | . . . Special Weapon . | . . . Impact Weapon . | . . . Slashing Weapon . | . . . Piercing Weapon . | . . . Special Melee Weapon . | . . . Unidentified Prototypes . | . . . Parts Lost 11 | . 1 10 Power 3 | . 1 2 Propulsion 4 | . . 4 Utility 1 | . . 1 Weapon 3 | . . 3 Highest Loss Streak 5 | . 1 5 To Critical Strikes . | . . . Average Slot Usage (%) 98 | . 97 98 Engine 13 | . 14 13 Treads 27 | . 28 27 Device 12 | . 12 14 Storage 14 | . 14 14 Ballistic Gun 27 | . 28 26 Naked Turns . | . . . Heaviest Build 48 | 12 48 48 Greatest Support 40 | 40 40 40 Greatest Overweight (x) 2 | 2 1 1 Average Overweight (x) . | . . 1 Largest Inventory Capacity 20 | 8 20 20 Average Capacity 18 | 7 18 20 Most Carried 12 | 1 11 12 Average Carried 6 | . 6 8 Final Capacity 20 | 8 20 20 Final Carried 12 | 1 11 12 Class Distribution -------------------- 96% | Mutant 3% | Scavenger-Mutant Dominant Class ---------------- Mutant | -10/Materials Mutant | -10/Mines Resources | -11 -10 -10 ----------- Run | Yrd Mat Min Matter Collected 526 | 213 218 95 Remotely . | . . . Salvage Created 431 | . 334 97 Parts 28 | . 28 . Haulers Intercepted 1 | . 1 . Recyclers Shooed 1 | . 1 . Parts Field Recycled . | . . . Retrieved Matter . | . . . Parts Self-Destructed . | . . . Prevented . | . . . Kills | -11 -10 -10 ------- Run | Yrd Mat Min Combat Hostiles Destroyed 17 | . 11 6 Guns 16 | . 11 5 Cannons 1 | . . 1 Classes Destroyed 6 | . 4 2 Hauler 1 | . 1 . Watcher 1 | . 1 . Swarmer 6 | . 6 . Grunt 5 | . 5 . Demolisher 1 | . . 1 Assembled 5 | . . 5 Best Kill Streak 6 | . 6 3 Combat Bots Only 6 | . 6 3 Max Kills in Single Turn 1 | . 1 1 Gunslinging . | . . . Exploded . | . . . Melee . | . . . Uniques/NPCs Destroyed . | . . . Combat | -11 -10 -10 -------- Run | Yrd Mat Min Hostile Shots Fired 114 | . 75 39 Missed 19 | . 16 3 Damage Taken 1422 | . 531 891 Core 254 | . 84 170 Absorbed by Shields . | . . . Core Remaining (%) 100 | 100 . . Volleys Fired 78 | . 48 30 Largest 2 | . 2 2 Hottest 77 | . 40 77 Shots Fired 154 | . 96 58 Gun 147 | . 96 51 Cannon 7 | . . 7 Launcher . | . . . Special . | . . . Kinetic 147 | . 96 51 Thermal 7 | . . 7 Explosive . | . . . Electromagnetic . | . . . Robot Hit Streak 9 | . 6 9 Robot Miss Streak 6 | . 4 6 Penetration Max . | . . . Secondary Targets 3 | . 2 1 Max Gunslinging Chain 1 | . 1 1 Shots Hit Robots 94 | . 57 37 Core Hits 41 | . 26 15 Critical Kills 1 | . . 1 Critical Parts Destroyed 2 | . 1 1 Critical Strikes 3 | . 1 2 Destroy 3 | . 1 2 Melee Attacks . | . . . Impact . | . . . Slashing . | . . . Piercing . | . . . Sneak Attacks . | . . . Combat Hostiles . | . . . Follow-up Attacks . | . . . Damage Inflicted 840 | . 483 357 Guns 808 | . 483 325 Cannons 32 | . . 32 Explosions . | . . . Melee . | . . . Ramming . | . . . Kinetic 783 | . 483 300 Thermal 57 | . . 57 Explosive . | . . . Electromagnetic . | . . . Impact . | . . . Slashing . | . . . Piercing . | . . . Highest Corruption 7 | . . 7 Average Corruption 6 | . . 6 Corruption Purged . | . . . Corruption Blocked . | . . . Effects 16 | . . 16 Message Errors 5 | . . 5 Matter Fused 4 | . . 4 Heat Flow Errors 1 | . . 1 Energy Discharges 1 | . . 1 Data Loss (minor) 4 | . . 4 Weapon Failures 1 | . . 1 Overload Shots . | . . . Overflow Damage . | . . . Projectiles . | . . . Explosions . | . . . Melee . | . . . Knockbacks . | . . . Impact . | . . . Kinetic . | . . . Secondary . | . . . Self-Inflicted Damage . | . . . Shots . | . . . Rammed . | . . . Targets Rammed . | . . . Kicked . | . . . Crushed . | . . . Highest Temperature 89 | . 12 89 Average Temperature 23 | . 6 31 Received Heat Transfer 344 | . 144 200 Siege Activations . | . . . Robots Corrupted . | . . . Combat Hostiles . | . . . Parts Fried . | . . . Impact Corruptions . | . . . Robots Melted . | . . . Combat Hostiles . | . . . Parts Melted . | . . . Heat Transferred 125 | . . 125 Parts Sabotaged . | . . . Parts Stolen . | . . . Parts Stripped . | . . . Power Chain Reactions . | . . . Alert | -11 -10 -10 ------- Run | Yrd Mat Min Peak Influence 260 | . 260 2 Initial . | . . . Average 61 | . 103 . Maximum Alert Level 1 | . 1 . Low Security (%) 88 | 100 80 100 Level 1 11 | . 19 . Level 2 . | . . . Level 3 . | . . . Level 4 . | . . . Level 5 . | . . . High Security . | . . . Max Security . | . . . Squads Dispatched 2 | . 2 . Investigation 2 | . 2 . Extermination . | . . . Reinforcement . | . . . Assault . | . . . Garrison . | . . . Intercept . | . . . Searches Triggered . | . . . Construction Impeded . | . . . Haulers Reinforced . | . . . Active Scanning Responses . | . . . Cargo Convoy Interrupts . | . . . Stealth | -11 -10 -10 --------- Run | Yrd Mat Min Distress Signals . | . . . Communications Jammed . | . . . Distress Signals . | . . . Times Spotted 29 | . 20 9 Peak Tracking Total 7 | . 7 5 Tactical Retreats 6 | . 3 3 Traps | -11 -10 -10 ------- Run | Yrd Mat Min Traps Triggered 1 | . 1 . Indirectly . | . . . Trap Hack Attempts . | . . . Triggered . | . . . Disarmed . | . . . Reprogrammed . | . . . Reused . | . . . Traps Extracted . | . . . Installed . | . . . Triggered . | . . . Machines | -11 -10 -10 ---------- Run | Yrd Mat Min Machines Disabled . | . . . Max in Single Turn . | . . . Machines Repaired . | . . . Machines Dismantled . | . . . Machines Sabotaged . | . . . Overloaded Fab Kills . | . . . Hacking | -11 -10 -10 --------- Run | Yrd Mat Min Machines Accessed 3 | . 3 . Terminals 3 | . 3 . Fabricators . | . . . Repair Stations . | . . . Recycling Units . | . . . Scanalyzers . | . . . Garrison Access . | . . . Total Hacks 8 | . 8 . Successful 3 | . 3 . Failed 5 | . 5 . Catastrophic 2 | . 2 . Database Lockouts . | . . . Manual 8 | . 8 . Terminals 8 | . 8 . Fabricators . | . . . Repair Stations . | . . . Recycling Units . | . . . Scanalyzers . | . . . Garrison Access . | . . . Terminal Hacks 2 | . 2 . Branch Access Points 1 | . 1 . Terminal Index 1 | . 1 . Fabricator Hacks . | . . . Repair Station Hacks . | . . . Recycling Unit Hacks . | . . . Scanalyzer . | . . . Garrison Access Hacks . | . . . Unauthorized Hacks 1 | . 1 . Terminals 1 | . 1 . Botnet 1 | . 1 . Fabricators . | . . . Repair Stations . | . . . Recycling Units . | . . . Scanalyzers . | . . . Garrison Access . | . . . Data Cores Recovered . | . . . Used . | . . . Hacking Detections 3 | . 3 . Full Trace Events 1 | . 1 . Feedback Events . | . . . Feedback Blocked . | . . . Robot Schematics Acquired . | . . . Robots Built . | . . . Authchips . | . . . Time . | . . . Total Robot Build Rating . | . . . Part Schematics Acquired . | . . . Parts Built . | . . . Authchips . | . . . Time . | . . . Total Part Build Rating . | . . . Parts Repaired . | . . . Time . | . . . Parts Recycled . | . . . Recycled Matter . | . . . Retrieved Matter . | . . . Retrieved Components . | . . . Parts Scanalyzed . | . . . Part Schematics Acquired . | . . . Parts Damaged . | . . . Bothacking | -11 -10 -10 ------------ Run | Yrd Mat Min Used RIF Installer . | . . . Robots Hacked . | . . . Non-combat . | . . . Combat . | . . . Robot Hacks Applied . | . . . Relay Couplers Released . | . . . Fabnet Peak Effective % . | . . . Robots Rewired . | . . . Allies Hacked . | . . . Hacks Repelled . | . . . Allies | -11 -10 -10 -------- Run | Yrd Mat Min Total Allies . | . . . Largest Group . | . . . Highest-Rated Group . | . . . Highest-Rated Ally . | . . . Total Orders . | . . . Ally Attacks . | . . . Total Damage . | . . . Kills . | . . . Allies Corrupted . | . . . Allies Melted . | . . . Intel | -11 -10 -10 ------- Run | Yrd Mat Min Robot Analysis Total . | . . . Derelict Logs Recovered 1 | . . 1 Drone Launches . | . . . Drone Recoveries . | . . . Exploration | -11 -10 -10 ------------- Run | Yrd Mat Min Turns Passed 1425 | 73 848 504 Spaces Moved 517 | 42 303 172 Core 7 | 7 . . Treads 510 | 35 303 172 Legs . | . . . Wheels . | . . . Hover . | . . . Flight . | . . . Fastest Speed 50 | 50 160 240 Average Speed 223 | 151 223 240 Slowest Speed 240 | 160 240 240 Overloaded Moves . | . . . Propulsion Burnouts . | . . . Robots Hopped . | . . . Cave-ins Triggered . | . . . Exploration Rate (%) 29 | 4 44 41 Regions Visited 2 Branch Regions 1 Pre-discovered Areas 1 | . . 1 Known Exits Taken 1 | . 1 . Unknown Exits Taken 1 | 1 . . Scrap Searched . | . . . Spaces Dug . | . . . Terrain Destroyed 6 | . . 6 Melee . | . . . Projectile 6 | . . 6 AOE . | . . . Terrain Rammed . | . . . Walls Destroyed . | . . . Machines Disabled . | . . . Actions | -11 -10 -10 --------- Run | Yrd Mat Min Total 657 | 48 395 214 Wait 30 | . 30 . Move 515 | 41 302 172 Hop . | . . . Pick Up 13 | . 7 6 Fast Attach 8 | 6 2 . Attach 6 | . 1 5 Detach . | . . . Swap 6 | 1 4 1 Drop 1 | . 1 . Fire 78 | . 48 30 Melee . | . . . Ram . | . . . Kick . | . . . Crush . | . . . Escape Stasis . | . . . Rewire . | . . . Trap . | . . . Miscellaneous . | . . . Route ------- -11/Scrapyard -10/Materials (discovered 3 exits: [*Mat] / *Min x2) -10/Mines History --------- Turn | Location | Event 15 | -11/Scrapyard | Discovered new exit (range 16) 74 | -11/Scrapyard | Entered Materials 342 | -10/Materials | Build established: Mutant 655 | -10/Materials | Discovered new exit (range 10) 761 | -10/Materials | Identified exit to Mines 922 | -10/Materials | Entered Mines 923 | -10/Mines | Assembled infested the area 1023 | -10/Mines | Lost 5 parts (1p2n2w) 1100 | -10/Mines | Learned location of Storage (-8) 1184 | -10/Mines | A weapon hastily lodged in a ceiling crevice suddenly fell to the ground 1417 | -10/Mines | Core integrity fell below 50% 1421 | -10/Mines | Core integrity fell below 20% 1426 | -10/Mines | Destroyed by D-53 Grenadier with Mini Grenade Launcher Last Messages --------------- Acquired Power Shielding. Acquired Targeting Computer. Acquired ECM Suite. D,TA06H550LOP&TMCONU,YR4% System corrupted: Matter fused (-10). Lgt. Ion Engine destroyed. HV Slug penetrates Wall. Lgt. Treads destroyed. Core Extractor disabled. The unstable cave ceiling collapses. U-05 Engineer builds a Wall. Lgt. Treads destroyed. HV Slug penetrates Wall. The unstable cave ceiling collapses. HV Slug penetrates Wall. Lgt. Assault Rifle destroyed. Seismic Detector destroyed. The unstable cave ceiling collapses. D-53 Grenadier suffers critical hit (Destroy). D-53 Grenadier destroyed. Map ----- +----------------------------------------------------+ | ?????????????????????????????????### | | ?????????????????????????????????# | | ?????????????????????????????????# | | ?????????????????????????????????# # | | ?????????????????????????????????# # | | ?????????????????????????????????# # | | ?????????????????????????????????# # | | ?????????????????????????????????# # | | ?????????????????????????????????# | | ???????????????? ?????????????#### | | ???????????????? ????????????## | | ???????????????# ????????????# | | ???????????????# ????????????# | | ???????????????# ????????????## | | ??????????????? ???###??????## | | ???????????????# ??## ##???### | | ???????????????# ###t #??## # | | ???????????????# ##! #??# # | | ?##########????# #??# # | | ?# #????# t ## # | | ?# ###### ; ?## | | ?# ## #???# % # | | ?# """ ##### # ### | | ?# "" t%d u ### #?? | | ?# "" % #?? #?? | | ?# @ #### ######?? ?? | | ?# ;###??# #??????###? | | ?####### # #??? #????????? | | ???????## ##????# #???????? | | ????????## ##?????# ??????? | | ?????????#######??????? ?????? | | ??????????????????????# #????? | | ?????????????????????? ##????? | | ?????????????????????? ###?????? | | ?????????????????????? ##???????? | | ?????????????????????? #????????? | | ?????????????????????? #????????? | | ????????????????????? #????????? | | ????????????????????? ##????????? | | ?????????????????????? #??????????? | | ????????????????????????????????????? | | ????????????????????????????????????? | | ????????????????????????????????????? | | ????????????????????????????????????? | | ????????????????????????????????????? | | ????????????????????????????????????? | | ????????????????????????????????????? | | ????????????????????????????????????? | | ????????????????????????????????????? | | ????????????????????????????????????? | +----------------------------------------------------+ Best States ------------- Heat Dissipation 25 Energy Generation 10 Energy Capacity 250 Matter Stores 300 Matter Capacity 300 Sight Range 16 Terrain Scan Density 10 Evasion (%) 40 Recoil Reduction 2 Item Schematics ----------------- None Robot Schematics ------------------ None Fabricated ------------ Nothing Alien Tech Used ----------------- None Achievements -------------- None Challenges ------------ None Game ------ Seed DeliveryCompositeNanosword Manual? 0 Play Time 00:10:18 Cumulative 24.8 hours Start 2024.06.30 @ 22:54:30 End 2024.06.30 @ 23:04:09 Sessions 1 Manual Loads 0 Difficulty Rogue Special Mode None Game No. 27 Rogue 26 Adventurer 1 Explorer 0 Win Type - Total 0 Types 0/0/0/0/0/0/0/0/0 Lore% 15 Gallery% 17 Achievement% 17 Wizard Run 0 Options --------- Layout 1 ASCII 0 Keyboard 0 Movement Mouse Keybinds 0 Fullscreen 2 Font 24/Smallcaps Map View 50x35 Zoom Use 0% Tactical HUD 0 Map Filters NONE Filters NONE Steam 1 RUN: cabeca9c-3860-4172-a31d-5829f48c39e0